Workbook

Sheet Summary
C3: SUMMARY OF STOCK IN / OUT BY MONTH
B6: OUTLET | C6: =MID(CELL("FILENAME",$A$1),FIND("[",CELL("FILENAME",$A$1))+1,3) -> STP
B8: YEAR | C8: =MID(CELL("FILENAME",$A$1),FIND("[",CELL("FILENAME",$A$1))+4,4) -> 2014
B10: MONTH
B12: FILE PATH | C12: =MID(CELL("FILENAME",$A$1),1,FIND("[",CELL("FILENAME",$A$1))-1) -> D:\Purchasing\Beer & EGSR\EGSR Reports\YR2014\STP\
B14: CELL LINK | C14: 4
B17: TYPE OF PRODUCT | C17: STOCK IN / OUT | I17: CLOSING STOCK
C18: PURCHASED | D18: INCENTIVE | E18: SOLD | F18: DEPOSITED | G18: REDEEMED | H18: FORFEITED | I18: AT MONTH END
C19: exclude forfeited
C20: ( bottles ) | D20: ( bottles ) | E20: ( bottles ) | F20: ( bottles ) | G20: ( bottles ) | H20: ( bottles ) | I20: ( bottles )
B21: GUINNESS | C21: =IFERROR(IF($B21<>"",INDEX(INDIRECT($B21&"!$Q$17:$Q$28"),$C$14,1),""),"") -> 72 | D21: =IFERROR(IF($B21<>"",INDEX(INDIRECT($B21&"!$G$17:$G$28"),$C$14,1),""),"") -> 0 | E21: =IFERROR(IF($B21<>"",INDEX(INDIRECT($B21&"!$H$17:$H$28"),$C$14,1),""),"") -> 94 | F21: =IFERROR(IF($B21<>"",INDEX(INDIRECT($B21&"!$L$17:$L$28"),$C$14,1),""),"") -> 25 | G21: =IFERROR(IF($B21<>"",INDEX(INDIRECT($B21&"!$M$17:$M$28"),$C$14,1),""),"") -> 27 | H21: =IFERROR(IF($B21<>"",INDEX(INDIRECT($B21&"!$N$17:$N$28"),$C$14,1),""),"") -> 3 | I21: =IFERROR(IF($B21<>"",INDEX(INDIRECT($B21&"!$P$17:$P$28"),$C$14,1),""),"") -> 62
B22: HEINEKEN | C22: =IFERROR(IF($B22<>"",INDEX(INDIRECT($B22&"!$Q$17:$Q$28"),$C$14,1),""),"") -> 768 | D22: =IFERROR(IF($B22<>"",INDEX(INDIRECT($B22&"!$G$17:$G$28"),$C$14,1),""),"") -> 0 | E22: =IFERROR(IF($B22<>"",INDEX(INDIRECT($B22&"!$H$17:$H$28"),$C$14,1),""),"") -> 826 | F22: =IFERROR(IF($B22<>"",INDEX(INDIRECT($B22&"!$L$17:$L$28"),$C$14,1),""),"") -> 79 | G22: =IFERROR(IF($B22<>"",INDEX(INDIRECT($B22&"!$M$17:$M$28"),$C$14,1),""),"") -> 59 | H22: =IFERROR(IF($B22<>"",INDEX(INDIRECT($B22&"!$N$17:$N$28"),$C$14,1),""),"") -> 2 | I22: =IFERROR(IF($B22<>"",INDEX(INDIRECT($B22&"!$P$17:$P$28"),$C$14,1),""),"") -> 79
B23: TIGER | C23: 3480 | D23: 0 | E23: 3403 | F23: 213 | G23: 144 | H23: 52 | I23: 502
B24: CIGARETTES | C24: 120 | D24: 0 | E24: 113 | F24: 0 | G24: 0 | H24: 0 | I24: 93
B25: PAULANAR | C25: 48 | D25: 0 | E25: 25 | F25: 0 | G25: 0 | H25: 0 | I25: 37
B26: APPLE CIDER
B27: HOEGAARDEN | C27: 24 | D27: 0 | E27: 48 | F27: 1 | G27: 0 | H27: 0 | I27: 26
B28: STRONGBOW | C28: 48 | D28: 0 | E28: 18 | F28: 0 | G28: 0 | H28: 0 | I28: 61
B36: TOTAL | C36: =SUM(C$21:C$35) -> 4560 | D36: =SUM(D$21:D$35) -> 0 | E36: 4527 | F36: 318 | G36: 230 | H36: 57 | I36: 860
B38: Copyright © 2012 by Oracle Symphony Sdn Bhd

Sheet GUINNESS
D3: ANNUAL STOCK SUMMARY OF ESSENTIAL GOODS BY TYPE
B6: OUTLET | D6: =Summary!C6 -> STP
B8: YEAR | D8: =Summary!C8 -> 2014
B10: TYPE OF BEER | D10: =MID(CELL("FILENAME",$A$1),FIND("]",CELL("FILENAME",$A$1))+1,256) -> GUINNESS
B13: MONTH | C13: FILE NAME | D13: FOR REGULAR STOCK | J13: FOR CUSTODY STOCK | P13: CLOSING | Q13: PURCHASED | R13: LOSSES ( - ) / GAINS ( + )
D14: OPENING | E14: ROW | F14: IN ( + ) | H14: OUT ( - ) | I14: BALANCE | J14: OPENING | K14: ROW | L14: IN ( + ) | M14: OUT ( - ) | O14: BALANCE | Q14: excluding | R14: REGULAR | S14: CUSTODY
F15: PURCHASED * | G15: INCENTIVE | H15: SOLD | I15: STOCK | L15: DEPOSITED | M15: REDEEMED | N15: FORFEITED | O15: STOCK | Q15: forfeited | R15: STOCK | S15: STOCK
D16: ( bottles ) | F16: ( bottles ) | G16: ( bottles ) | H16: ( bottles ) | I16: ( bottles ) | J16: ( bottles ) | L16: ( bottles ) | M16: ( bottles ) | N16: ( bottles ) | O16: ( bottles ) | P16: ( bottles ) | Q16: ( bottles ) | R16: ( bottles ) | S16: ( bottles )
B17: JANUARY | C17: =$D$6&$D$8&TEXT(ROW($B17)-ROW($B$16),"00")&" EGSR.xlsx" -> STP201401 EGSR.xlsx | D17: 146 | E17: =IFERROR(IF($D17<>"",1,""),"") -> 1 | F17: 0 | G17: 0 | H17: 0 | I17: =IFERROR(IF($D17<>"",$D17+$F17+$G17-$H17,""),"") -> 146 | J17: 1 | K17: =IFERROR(IF($J17<>"",1,""),"") -> 1 | L17: 1 | M17: 1 | N17: 0 | O17: =IFERROR(IF($J17<>"",$J17+$L17-$M17-$N17,""),"") -> 1 | P17: =IFERROR(IF($D17<>"",$I17+$O17,""),"") -> 147 | Q17: =IFERROR($F17-$N17,"") -> 0
B18: FEBRUARY | C18: =$D$6&$D$8&TEXT(ROW($B18)-ROW($B$16),"00")&" EGSR.xlsx" -> STP201402 EGSR.xlsx | D18: 307 | E18: =IFERROR(IF($D18<>"",1,""),"") -> 1 | F18: 49 | G18: 0 | H18: 90 | I18: =IFERROR(IF($D18<>"",$D18+$F18+$G18-$H18,""),"") -> 266 | J18: 1 | K18: =IFERROR(IF($J18<>"",1,""),"") -> 1 | L18: 0 | M18: 0 | N18: 1 | O18: =IFERROR(IF($J18<>"",$J18+$L18-$M18-$N18,""),"") -> 0 | P18: =IFERROR(IF($D18<>"",$I18+$O18,""),"") -> 266 | Q18: =IFERROR($F18-$N18,"") -> 48
B19: MARCH | C19: STP201403 EGSR.xlsx | D19: 266 | E19: 1 | F19: 0 | G19: 0 | H19: 0 | I19: 266 | J19: 0 | K19: 1 | L19: 9 | M19: 2 | N19: 0 | O19: 7 | P19: 273 | Q19: 0
B20: APRIL | C20: STP201404 EGSR.xlsx | D20: 79 | E20: 1 | F20: 75 | G20: 0 | H20: 94 | I20: 60 | J20: 7 | K20: 1 | L20: 25 | M20: 27 | N20: 3 | O20: 2 | P20: 62 | Q20: 72
B21: MAY | C21: STP201405 EGSR.xlsx | Q21: 0
B22: JUNE | C22: STP201406 EGSR.xlsx | Q22: 0
B23: JULY | C23: STP201407 EGSR.xlsx | Q23: 0
B24: AUGUST | C24: STP201408 EGSR.xlsx | Q24: 0
B25: SEPTEMBER | C25: STP201409 EGSR.xlsx | Q25: 0
B26: OCTOBER | C26: STP201410 EGSR.xlsx | Q26: 0
B27: NOVEMBER | C27: STP201411 EGSR.xlsx | Q27: 0
B28: DECEMBER | C28: STP201412 EGSR.xlsx | Q28: 0
B29: TOTAL | D29: =IFERROR(INDEX($D$17:$D$28,MATCH(1,$E$17:$E$28,0),1),0) -> 146 | F29: =SUM(F$17:F$28) -> 124 | G29: =SUM(G$17:G$28) -> 0 | H29: 184 | I29: =$D$29+$F$29+$G$29-$H$29 -> 86 | J29: =IFERROR(INDEX($J$17:$J$28,MATCH(1,$K$17:$K$28,0),1),0) -> 1 | L29: =SUM(L$17:L$28) -> 35 | M29: =SUM(M$17:M$28) -> 30 | N29: 4 | O29: =$J$29+$L$29-$M$29-$N$29 -> 2 | P29: =$I29+$O29 -> 88 | R29: =SUM(R$17:R$28) -> 0 | S29: =SUM(S$17:S$28) -> 0
B30: * STOCK PURCHASED INCLUDES STOCK FORFEITED FROM CUSTODY
B31: Copyright © 2012 by Oracle Symphony Sdn Bhd

Sheet HEINEKEN
D3: ANNUAL STOCK SUMMARY OF ESSENTIAL GOODS BY TYPE
B6: OUTLET | D6: =Summary!C6 -> STP
B8: YEAR | D8: =Summary!C8 -> 2014
B10: TYPE OF BEER | D10: =MID(CELL("FILENAME",$A$1),FIND("]",CELL("FILENAME",$A$1))+1,256) -> HEINEKEN
B13: MONTH | C13: FILE NAME | D13: FOR REGULAR STOCK | J13: FOR CUSTODY STOCK | P13: CLOSING | Q13: PURCHASED | R13: LOSSES ( - ) / GAINS ( + )
D14: OPENING | E14: ROW | F14: IN ( + ) | H14: OUT ( - ) | I14: BALANCE | J14: OPENING | K14: ROW | L14: IN ( + ) | M14: OUT ( - ) | O14: BALANCE | Q14: excluding | R14: REGULAR | S14: CUSTODY
F15: PURCHASED * | G15: INCENTIVE | H15: SOLD | I15: STOCK | L15: DEPOSITED | M15: REDEEMED | N15: FORFEITED | O15: STOCK | Q15: forfeited | R15: STOCK | S15: STOCK
D16: ( bottles ) | F16: ( bottles ) | G16: ( bottles ) | H16: ( bottles ) | I16: ( bottles ) | J16: ( bottles ) | L16: ( bottles ) | M16: ( bottles ) | N16: ( bottles ) | O16: ( bottles ) | P16: ( bottles ) | Q16: ( bottles ) | R16: ( bottles ) | S16: ( bottles )
B17: JANUARY | C17: =$D$6&$D$8&TEXT(ROW($B17)-ROW($B$16),"00")&" EGSR.xlsx" -> STP201401 EGSR.xlsx | D17: 432 | E17: =IFERROR(IF($D17<>"",1,""),"") -> 1 | F17: 120 | G17: 0 | H17: 340 | I17: =IFERROR(IF($D17<>"",$D17+$F17+$G17-$H17,""),"") -> 212 | J17: 2 | K17: =IFERROR(IF($J17<>"",1,""),"") -> 1 | L17: 18 | M17: 12 | N17: 0 | O17: =IFERROR(IF($J17<>"",$J17+$L17-$M17-$N17,""),"") -> 8 | P17: =IFERROR(IF($D17<>"",$I17+$O17,""),"") -> 220 | Q17: =IFERROR($F17-$N17,"") -> 120
B18: FEBRUARY | C18: =$D$6&$D$8&TEXT(ROW($B18)-ROW($B$16),"00")&" EGSR.xlsx" -> STP201402 EGSR.xlsx | D18: 212 | E18: =IFERROR(IF($D18<>"",1,""),"") -> 1 | F18: 624 | G18: 0 | H18: 636 | I18: =IFERROR(IF($D18<>"",$D18+$F18+$G18-$H18,""),"") -> 200 | J18: 8 | K18: =IFERROR(IF($J18<>"",1,""),"") -> 1 | L18: 29 | M18: 26 | N18: 0 | O18: =IFERROR(IF($J18<>"",$J18+$L18-$M18-$N18,""),"") -> 11 | P18: =IFERROR(IF($D18<>"",$I18+$O18,""),"") -> 211 | Q18: =IFERROR($F18-$N18,"") -> 624
B19: MARCH | C19: STP201403 EGSR.xlsx | D19: 200 | E19: 1 | F19: 438 | G19: 0 | H19: 545 | I19: 93 | J19: 11 | K19: 1 | L19: 47 | M19: 28 | N19: 6 | O19: 24 | P19: 117 | Q19: 432
B20: APRIL | C20: STP201404 EGSR.xlsx | D20: 93 | E20: 1 | F20: 770 | G20: 0 | H20: 826 | I20: 37 | J20: 24 | K20: 1 | L20: 79 | M20: 59 | N20: 2 | O20: 42 | P20: 79 | Q20: 768
B21: MAY | C21: STP201405 EGSR.xlsx | Q21: 0
B22: JUNE | C22: STP201406 EGSR.xlsx | Q22: 0
B23: JULY | C23: STP201407 EGSR.xlsx | Q23: 0
B24: AUGUST | C24: STP201408 EGSR.xlsx | Q24: 0
B25: SEPTEMBER | C25: STP201409 EGSR.xlsx | Q25: 0
B26: OCTOBER | C26: STP201410 EGSR.xlsx | Q26: 0
B27: NOVEMBER | C27: STP201411 EGSR.xlsx | Q27: 0
B28: DECEMBER | C28: STP201412 EGSR.xlsx | Q28: 0
B29: TOTAL | D29: =IFERROR(INDEX($D$17:$D$28,MATCH(1,$E$17:$E$28,0),1),0) -> 432 | F29: =SUM(F$17:F$28) -> 1952 | G29: =SUM(G$17:G$28) -> 0 | H29: 2347 | I29: =$D$29+$F$29+$G$29-$H$29 -> 37 | J29: =IFERROR(INDEX($J$17:$J$28,MATCH(1,$K$17:$K$28,0),1),0) -> 2 | L29: =SUM(L$17:L$28) -> 173 | M29: =SUM(M$17:M$28) -> 125 | N29: 8 | O29: =$J$29+$L$29-$M$29-$N$29 -> 42 | P29: =$I29+$O29 -> 79 | R29: =SUM(R$17:R$28) -> 0 | S29: =SUM(S$17:S$28) -> 0
B30: * STOCK PURCHASED INCLUDES STOCK FORFEITED FROM CUSTODY
B31: Copyright © 2012 by Oracle Symphony Sdn Bhd

Sheet TIGER
D3: ANNUAL STOCK SUMMARY OF ESSENTIAL GOODS BY TYPE
B6: OUTLET | D6: =Summary!C6 -> STP
B8: YEAR | D8: =Summary!C8 -> 2014
B10: TYPE OF BEER | D10: =MID(CELL("FILENAME",$A$1),FIND("]",CELL("FILENAME",$A$1))+1,256) -> TIGER
B13: MONTH | C13: FILE NAME | D13: FOR REGULAR STOCK | J13: FOR CUSTODY STOCK | P13: CLOSING | Q13: PURCHASED | R13: LOSSES ( - ) / GAINS ( + )
D14: OPENING | E14: ROW | F14: IN ( + ) | H14: OUT ( - ) | I14: BALANCE | J14: OPENING | K14: ROW | L14: IN ( + ) | M14: OUT ( - ) | O14: BALANCE | Q14: excluding | R14: REGULAR | S14: CUSTODY
F15: PURCHASED * | G15: INCENTIVE | H15: SOLD | I15: STOCK | L15: DEPOSITED | M15: REDEEMED | N15: FORFEITED | O15: STOCK | Q15: forfeited | R15: STOCK | S15: STOCK
D16: ( bottles ) | F16: ( bottles ) | G16: ( bottles ) | H16: ( bottles ) | I16: ( bottles ) | J16: ( bottles ) | L16: ( bottles ) | M16: ( bottles ) | N16: ( bottles ) | O16: ( bottles ) | P16: ( bottles ) | Q16: ( bottles ) | R16: ( bottles ) | S16: ( bottles )
B17: JANUARY | C17: =$D$6&$D$8&TEXT(ROW($B17)-ROW($B$16),"00")&" EGSR.xlsx" -> STP201401 EGSR.xlsx | D17: 451 | E17: =IFERROR(IF($D17<>"",1,""),"") -> 1 | F17: 4152 | G17: 0 | H17: 4099 | I17: =IFERROR(IF($D17<>"",$D17+$F17+$G17-$H17,""),"") -> 504 | J17: 27 | K17: =IFERROR(IF($J17<>"",1,""),"") -> 1 | L17: 185 | M17: 75 | N17: 0 | O17: =IFERROR(IF($J17<>"",$J17+$L17-$M17-$N17,""),"") -> 137 | P17: =IFERROR(IF($D17<>"",$I17+$O17,""),"") -> 641 | Q17: =IFERROR($F17-$N17,"") -> 4152
B18: FEBRUARY | C18: =$D$6&$D$8&TEXT(ROW($B18)-ROW($B$16),"00")&" EGSR.xlsx" -> STP201402 EGSR.xlsx | D18: 504 | E18: =IFERROR(IF($D18<>"",1,""),"") -> 1 | F18: 3765 | G18: 0 | H18: 3567 | I18: =IFERROR(IF($D18<>"",$D18+$F18+$G18-$H18,""),"") -> 702 | J18: 137 | K18: =IFERROR(IF($J18<>"",1,""),"") -> 1 | L18: 130 | M18: 86 | N18: 45 | O18: =IFERROR(IF($J18<>"",$J18+$L18-$M18-$N18,""),"") -> 136 | P18: =IFERROR(IF($D18<>"",$I18+$O18,""),"") -> 838 | Q18: =IFERROR($F18-$N18,"") -> 3720
B19: MARCH | C19: STP201403 EGSR.xlsx | D19: 702 | E19: 1 | F19: 2785 | G19: 0 | H19: 3294 | I19: 193 | J19: 136 | K19: 1 | L19: 185 | M19: 121 | N19: 25 | O19: 175 | P19: 368 | Q19: 2760
B20: APRIL | C20: STP201404 EGSR.xlsx | D20: 193 | E20: 1 | F20: 3532 | G20: 0 | H20: 3403 | I20: 322 | J20: 163 | K20: 1 | L20: 213 | M20: 144 | N20: 52 | O20: 180 | P20: 502 | Q20: 3480
B21: MAY | C21: STP201405 EGSR.xlsx | Q21: 0
B22: JUNE | C22: STP201406 EGSR.xlsx | Q22: 0
B23: JULY | C23: STP201407 EGSR.xlsx | Q23: 0
B24: AUGUST | C24: STP201408 EGSR.xlsx | Q24: 0
B25: SEPTEMBER | C25: STP201409 EGSR.xlsx | Q25: 0
B26: OCTOBER | C26: STP201410 EGSR.xlsx | Q26: 0
B27: NOVEMBER | C27: STP201411 EGSR.xlsx | Q27: 0
B28: DECEMBER | C28: STP201412 EGSR.xlsx | Q28: 0
B29: TOTAL | D29: =IFERROR(INDEX($D$17:$D$28,MATCH(1,$E$17:$E$28,0),1),0) -> 451 | F29: =SUM(F$17:F$28) -> 14234 | G29: =SUM(G$17:G$28) -> 0 | H29: 14363 | I29: =$D$29+$F$29+$G$29-$H$29 -> 322 | J29: =IFERROR(INDEX($J$17:$J$28,MATCH(1,$K$17:$K$28,0),1),0) -> 27 | L29: =SUM(L$17:L$28) -> 713 | M29: =SUM(M$17:M$28) -> 426 | N29: 122 | O29: =$J$29+$L$29-$M$29-$N$29 -> 192 | P29: =$I29+$O29 -> 514 | R29: =SUM(R$17:R$28) -> 0 | S29: =SUM(S$17:S$28) -> 0
B30: * STOCK PURCHASED INCLUDES STOCK FORFEITED FROM CUSTODY
B31: Copyright © 2012 by Oracle Symphony Sdn Bhd

Sheet PAULANAR
D3: ANNUAL STOCK SUMMARY OF ESSENTIAL GOODS BY TYPE
B6: OUTLET | D6: =Summary!C6 -> STP
B8: YEAR | D8: =Summary!C8 -> 2014
B10: TYPE OF BEER | D10: =MID(CELL("FILENAME",$A$1),FIND("]",CELL("FILENAME",$A$1))+1,256) -> PAULANAR
B13: MONTH | C13: FILE NAME | D13: FOR REGULAR STOCK | J13: FOR CUSTODY STOCK | P13: CLOSING | Q13: PURCHASED | R13: LOSSES ( - ) / GAINS ( + )
D14: OPENING | E14: ROW | F14: IN ( + ) | H14: OUT ( - ) | I14: BALANCE | J14: OPENING | K14: ROW | L14: IN ( + ) | M14: OUT ( - ) | O14: BALANCE | Q14: excluding | R14: REGULAR | S14: CUSTODY
F15: PURCHASED * | G15: INCENTIVE | H15: SOLD | I15: STOCK | L15: DEPOSITED | M15: REDEEMED | N15: FORFEITED | O15: STOCK | Q15: forfeited | R15: STOCK | S15: STOCK
D16: ( bottles ) | F16: ( bottles ) | G16: ( bottles ) | H16: ( bottles ) | I16: ( bottles ) | J16: ( bottles ) | L16: ( bottles ) | M16: ( bottles ) | N16: ( bottles ) | O16: ( bottles ) | P16: ( bottles ) | Q16: ( bottles ) | R16: ( bottles ) | S16: ( bottles )
B17: JANUARY | C17: =$D$6&$D$8&TEXT(ROW($B17)-ROW($B$16),"00")&" EGSR.xlsx" -> STP201401 EGSR.xlsx | D17: 43 | E17: =IFERROR(IF($D17<>"",1,""),"") -> 1 | F17: 0 | G17: 0 | H17: 7 | I17: =IFERROR(IF($D17<>"",$D17+$F17+$G17-$H17,""),"") -> 36 | J17: 0 | K17: =IFERROR(IF($J17<>"",1,""),"") -> 1 | L17: 0 | M17: 0 | N17: 0 | O17: =IFERROR(IF($J17<>"",$J17+$L17-$M17-$N17,""),"") -> 0 | P17: =IFERROR(IF($D17<>"",$I17+$O17,""),"") -> 36 | Q17: =IFERROR($F17-$N17,"") -> 0
B18: FEBRUARY | C18: =$D$6&$D$8&TEXT(ROW($B18)-ROW($B$16),"00")&" EGSR.xlsx" -> STP201402 EGSR.xlsx | D18: 36 | E18: =IFERROR(IF($D18<>"",1,""),"") -> 1 | F18: 0 | G18: 0 | H18: 16 | I18: =IFERROR(IF($D18<>"",$D18+$F18+$G18-$H18,""),"") -> 20 | J18: 0 | K18: =IFERROR(IF($J18<>"",1,""),"") -> 1 | L18: 0 | M18: 0 | N18: 0 | O18: =IFERROR(IF($J18<>"",$J18+$L18-$M18-$N18,""),"") -> 0 | P18: =IFERROR(IF($D18<>"",$I18+$O18,""),"") -> 20 | Q18: =IFERROR($F18-$N18,"") -> 0
B19: MARCH | C19: STP201403 EGSR.xlsx | D19: 20 | E19: 1 | F19: 24 | G19: 0 | H19: 30 | I19: 14 | J19: 0 | K19: 1 | L19: 0 | M19: 0 | N19: 0 | O19: 0 | P19: 14 | Q19: 24
B20: APRIL | C20: STP201404 EGSR.xlsx | D20: 14 | E20: 1 | F20: 48 | G20: 0 | H20: 25 | I20: 37 | J20: 0 | K20: 1 | L20: 0 | M20: 0 | N20: 0 | O20: 0 | P20: 37 | Q20: 48
B21: MAY | C21: STP201405 EGSR.xlsx | Q21: 0
B22: JUNE | C22: STP201406 EGSR.xlsx | Q22: 0
B23: JULY | C23: STP201407 EGSR.xlsx | Q23: 0
B24: AUGUST | C24: STP201408 EGSR.xlsx | Q24: 0
B25: SEPTEMBER | C25: STP201409 EGSR.xlsx | Q25: 0
B26: OCTOBER | C26: STP201410 EGSR.xlsx | Q26: 0
B27: NOVEMBER | C27: STP201411 EGSR.xlsx | Q27: 0
B28: DECEMBER | C28: STP201412 EGSR.xlsx | Q28: 0
B29: TOTAL | D29: =IFERROR(INDEX($D$17:$D$28,MATCH(1,$E$17:$E$28,0),1),0) -> 43 | F29: =SUM(F$17:F$28) -> 72 | G29: =SUM(G$17:G$28) -> 0 | H29: 78 | I29: =$D$29+$F$29+$G$29-$H$29 -> 37 | J29: =IFERROR(INDEX($J$17:$J$28,MATCH(1,$K$17:$K$28,0),1),0) -> 0 | L29: =SUM(L$17:L$28) -> 0 | M29: =SUM(M$17:M$28) -> 0 | N29: 0 | O29: =$J$29+$L$29-$M$29-$N$29 -> 0 | P29: =$I29+$O29 -> 37 | R29: =SUM(R$17:R$28) -> 0 | S29: =SUM(S$17:S$28) -> 0
B30: * STOCK PURCHASED INCLUDES STOCK FORFEITED FROM CUSTODY
B31: Copyright © 2012 by Oracle Symphony Sdn Bhd

Sheet HOEGAARDEN
D3: ANNUAL STOCK SUMMARY OF ESSENTIAL GOODS BY TYPE
B6: OUTLET | D6: =Summary!C6 -> STP
B8: YEAR | D8: =Summary!C8 -> 2014
B10: TYPE OF BEER | D10: =MID(CELL("FILENAME",$A$1),FIND("]",CELL("FILENAME",$A$1))+1,256) -> HOEGAARDEN
B13: MONTH | C13: FILE NAME | D13: FOR REGULAR STOCK | J13: FOR CUSTODY STOCK | P13: CLOSING | Q13: PURCHASED | R13: LOSSES ( - ) / GAINS ( + )
D14: OPENING | E14: ROW | F14: IN ( + ) | H14: OUT ( - ) | I14: BALANCE | J14: OPENING | K14: ROW | L14: IN ( + ) | M14: OUT ( - ) | O14: BALANCE | Q14: excluding | R14: REGULAR | S14: CUSTODY
F15: PURCHASED * | G15: INCENTIVE | H15: SOLD | I15: STOCK | L15: DEPOSITED | M15: REDEEMED | N15: FORFEITED | O15: STOCK | Q15: forfeited | R15: STOCK | S15: STOCK
D16: ( bottles ) | F16: ( bottles ) | G16: ( bottles ) | H16: ( bottles ) | I16: ( bottles ) | J16: ( bottles ) | L16: ( bottles ) | M16: ( bottles ) | N16: ( bottles ) | O16: ( bottles ) | P16: ( bottles ) | Q16: ( bottles ) | R16: ( bottles ) | S16: ( bottles )
B17: JANUARY | C17: =$D$6&$D$8&TEXT(ROW($B17)-ROW($B$16),"00")&" EGSR.xlsx" -> STP201401 EGSR.xlsx | D17: 55 | E17: =IFERROR(IF($D17<>"",1,""),"") -> 1 | F17: 24 | G17: 0 | H17: 75 | I17: =IFERROR(IF($D17<>"",$D17+$F17+$G17-$H17,""),"") -> 4 | J17: 0 | K17: =IFERROR(IF($J17<>"",1,""),"") -> 1 | L17: 1 | M17: 0 | N17: 0 | O17: =IFERROR(IF($J17<>"",$J17+$L17-$M17-$N17,""),"") -> 1 | P17: =IFERROR(IF($D17<>"",$I17+$O17,""),"") -> 5 | Q17: =IFERROR($F17-$N17,"") -> 24
B18: FEBRUARY | C18: =$D$6&$D$8&TEXT(ROW($B18)-ROW($B$16),"00")&" EGSR.xlsx" -> STP201402 EGSR.xlsx | D18: 4 | E18: =IFERROR(IF($D18<>"",1,""),"") -> 1 | F18: 96 | G18: 0 | H18: 59 | I18: =IFERROR(IF($D18<>"",$D18+$F18+$G18-$H18,""),"") -> 41 | J18: 1 | K18: =IFERROR(IF($J18<>"",1,""),"") -> 1 | L18: 0 | M18: 0 | N18: 0 | O18: =IFERROR(IF($J18<>"",$J18+$L18-$M18-$N18,""),"") -> 1 | P18: =IFERROR(IF($D18<>"",$I18+$O18,""),"") -> 42 | Q18: =IFERROR($F18-$N18,"") -> 96
B19: MARCH | C19: STP201403 EGSR.xlsx | D19: 41 | E19: 1 | F19: 49 | G19: 0 | H19: 41 | I19: 49 | J19: 1 | K19: 1 | L19: 0 | M19: 0 | N19: 1 | O19: 0 | P19: 49 | Q19: 48
B20: APRIL | C20: STP201404 EGSR.xlsx | D20: 49 | E20: 1 | F20: 24 | G20: 0 | H20: 48 | I20: 25 | J20: 0 | K20: 1 | L20: 1 | M20: 0 | N20: 0 | O20: 1 | P20: 26 | Q20: 24
B21: MAY | C21: STP201405 EGSR.xlsx | Q21: 0
B22: JUNE | C22: STP201406 EGSR.xlsx | Q22: 0
B23: JULY | C23: STP201407 EGSR.xlsx | Q23: 0
B24: AUGUST | C24: STP201408 EGSR.xlsx | Q24: 0
B25: SEPTEMBER | C25: STP201409 EGSR.xlsx | Q25: 0
B26: OCTOBER | C26: STP201410 EGSR.xlsx | Q26: 0
B27: NOVEMBER | C27: STP201411 EGSR.xlsx | Q27: 0
B28: DECEMBER | C28: STP201412 EGSR.xlsx | Q28: 0
B29: TOTAL | D29: =IFERROR(INDEX($D$17:$D$28,MATCH(1,$E$17:$E$28,0),1),0) -> 55 | F29: =SUM(F$17:F$28) -> 193 | G29: =SUM(G$17:G$28) -> 0 | H29: 223 | I29: =$D$29+$F$29+$G$29-$H$29 -> 25 | J29: =IFERROR(INDEX($J$17:$J$28,MATCH(1,$K$17:$K$28,0),1),0) -> 0 | L29: =SUM(L$17:L$28) -> 2 | M29: =SUM(M$17:M$28) -> 0 | N29: 1 | O29: =$J$29+$L$29-$M$29-$N$29 -> 1 | P29: =$I29+$O29 -> 26 | R29: =SUM(R$17:R$28) -> 0 | S29: =SUM(S$17:S$28) -> 0
B30: * STOCK PURCHASED INCLUDES STOCK FORFEITED FROM CUSTODY
B31: Copyright © 2012 by Oracle Symphony Sdn Bhd

Sheet STRONGBOW
D3: ANNUAL STOCK SUMMARY OF ESSENTIAL GOODS BY TYPE
B6: OUTLET | D6: =Summary!C6 -> STP
B8: YEAR | D8: =Summary!C8 -> 2014
B10: TYPE OF BEER | D10: =MID(CELL("FILENAME",$A$1),FIND("]",CELL("FILENAME",$A$1))+1,256) -> STRONGBOW
B13: MONTH | C13: FILE NAME | D13: FOR REGULAR STOCK | J13: FOR CUSTODY STOCK | P13: CLOSING | Q13: PURCHASED | R13: LOSSES ( - ) / GAINS ( + )
D14: OPENING | E14: ROW | F14: IN ( + ) | H14: OUT ( - ) | I14: BALANCE | J14: OPENING | K14: ROW | L14: IN ( + ) | M14: OUT ( - ) | O14: BALANCE | Q14: excluding | R14: REGULAR | S14: CUSTODY
F15: PURCHASED * | G15: INCENTIVE | H15: SOLD | I15: STOCK | L15: DEPOSITED | M15: REDEEMED | N15: FORFEITED | O15: STOCK | Q15: forfeited | R15: STOCK | S15: STOCK
D16: ( bottles ) | F16: ( bottles ) | G16: ( bottles ) | H16: ( bottles ) | I16: ( bottles ) | J16: ( bottles ) | L16: ( bottles ) | M16: ( bottles ) | N16: ( bottles ) | O16: ( bottles ) | P16: ( bottles ) | Q16: ( bottles ) | R16: ( bottles ) | S16: ( bottles )
B17: JANUARY | C17: =$D$6&$D$8&TEXT(ROW($B17)-ROW($B$16),"00")&" EGSR.xlsx" -> STP201401 EGSR.xlsx | D17: 0 | E17: =IFERROR(IF($D17<>"",1,""),"") -> 1 | F17: 48 | G17: 0 | H17: 13 | I17: =IFERROR(IF($D17<>"",$D17+$F17+$G17-$H17,""),"") -> 35 | J17: 0 | K17: =IFERROR(IF($J17<>"",1,""),"") -> 1 | L17: 2 | M17: 0 | N17: 0 | O17: =IFERROR(IF($J17<>"",$J17+$L17-$M17-$N17,""),"") -> 2 | P17: =IFERROR(IF($D17<>"",$I17+$O17,""),"") -> 37 | Q17: =IFERROR($F17-$N17,"") -> 48
B18: FEBRUARY | C18: =$D$6&$D$8&TEXT(ROW($B18)-ROW($B$16),"00")&" EGSR.xlsx" -> STP201402 EGSR.xlsx | D18: 35 | E18: =IFERROR(IF($D18<>"",1,""),"") -> 1 | F18: 0 | G18: 0 | H18: 13 | I18: =IFERROR(IF($D18<>"",$D18+$F18+$G18-$H18,""),"") -> 22 | J18: 2 | K18: =IFERROR(IF($J18<>"",1,""),"") -> 1 | L18: 0 | M18: 2 | N18: 0 | O18: =IFERROR(IF($J18<>"",$J18+$L18-$M18-$N18,""),"") -> 0 | P18: =IFERROR(IF($D18<>"",$I18+$O18,""),"") -> 22 | Q18: =IFERROR($F18-$N18,"") -> 0
B19: MARCH | C19: STP201403 EGSR.xlsx | D19: 22 | E19: 1 | F19: 24 | G19: 0 | H19: 15 | I19: 31 | J19: 0 | K19: 1 | L19: 0 | M19: 0 | N19: 0 | O19: 0 | P19: 31 | Q19: 24
B20: APRIL | C20: STP201404 EGSR.xlsx | D20: 31 | E20: 1 | F20: 48 | G20: 0 | H20: 18 | I20: 61 | J20: 0 | K20: 1 | L20: 0 | M20: 0 | N20: 0 | O20: 0 | P20: 61 | Q20: 48
B21: MAY | C21: STP201405 EGSR.xlsx | Q21: 0
B22: JUNE | C22: STP201406 EGSR.xlsx | Q22: 0
B23: JULY | C23: STP201407 EGSR.xlsx | Q23: 0
B24: AUGUST | C24: STP201408 EGSR.xlsx | Q24: 0
B25: SEPTEMBER | C25: STP201409 EGSR.xlsx | Q25: 0
B26: OCTOBER | C26: STP201410 EGSR.xlsx | Q26: 0
B27: NOVEMBER | C27: STP201411 EGSR.xlsx | Q27: 0
B28: DECEMBER | C28: STP201412 EGSR.xlsx | Q28: 0
B29: TOTAL | D29: =IFERROR(INDEX($D$17:$D$28,MATCH(1,$E$17:$E$28,0),1),0) -> 0 | F29: =SUM(F$17:F$28) -> 120 | G29: =SUM(G$17:G$28) -> 0 | H29: 59 | I29: =$D$29+$F$29+$G$29-$H$29 -> 61 | J29: =IFERROR(INDEX($J$17:$J$28,MATCH(1,$K$17:$K$28,0),1),0) -> 0 | L29: =SUM(L$17:L$28) -> 2 | M29: =SUM(M$17:M$28) -> 2 | N29: 0 | O29: =$J$29+$L$29-$M$29-$N$29 -> 0 | P29: =$I29+$O29 -> 61 | R29: =SUM(R$17:R$28) -> 0 | S29: =SUM(S$17:S$28) -> 0
B30: * STOCK PURCHASED INCLUDES STOCK FORFEITED FROM CUSTODY
B31: Copyright © 2012 by Oracle Symphony Sdn Bhd

Sheet APPLE CIDER
D3: ANNUAL STOCK SUMMARY OF ESSENTIAL GOODS BY TYPE
B6: OUTLET | D6: =Summary!C6 -> STP
B8: YEAR | D8: =Summary!C8 -> 2014
B10: TYPE OF BEER | D10: =MID(CELL("FILENAME",$A$1),FIND("]",CELL("FILENAME",$A$1))+1,256) -> APPLE CIDER
B13: MONTH | C13: FILE NAME | D13: FOR REGULAR STOCK | J13: FOR CUSTODY STOCK | P13: CLOSING | Q13: PURCHASED | R13: LOSSES ( - ) / GAINS ( + )
D14: OPENING | E14: ROW | F14: IN ( + ) | H14: OUT ( - ) | I14: BALANCE | J14: OPENING | K14: ROW | L14: IN ( + ) | M14: OUT ( - ) | O14: BALANCE | Q14: excluding | R14: REGULAR | S14: CUSTODY
F15: PURCHASED * | G15: INCENTIVE | H15: SOLD | I15: STOCK | L15: DEPOSITED | M15: REDEEMED | N15: FORFEITED | O15: STOCK | Q15: forfeited | R15: STOCK | S15: STOCK
D16: ( bottles ) | F16: ( bottles ) | G16: ( bottles ) | H16: ( bottles ) | I16: ( bottles ) | J16: ( bottles ) | L16: ( bottles ) | M16: ( bottles ) | N16: ( bottles ) | O16: ( bottles ) | P16: ( bottles ) | Q16: ( bottles ) | R16: ( bottles ) | S16: ( bottles )
B17: JANUARY | C17: =$D$6&$D$8&TEXT(ROW($B17)-ROW($B$16),"00")&" EGSR.xlsx" -> STP201401 EGSR.xlsx | D17: 33 | E17: =IFERROR(IF($D17<>"",1,""),"") -> 1 | F17: 72 | G17: 0 | H17: 49 | I17: =IFERROR(IF($D17<>"",$D17+$F17+$G17-$H17,""),"") -> 56 | J17: 0 | K17: =IFERROR(IF($J17<>"",1,""),"") -> 1 | L17: 1 | M17: 1 | N17: 0 | O17: =IFERROR(IF($J17<>"",$J17+$L17-$M17-$N17,""),"") -> 0 | P17: =IFERROR(IF($D17<>"",$I17+$O17,""),"") -> 56 | Q17: =IFERROR($F17-$N17,"") -> 72
B18: FEBRUARY | C18: =$D$6&$D$8&TEXT(ROW($B18)-ROW($B$16),"00")&" EGSR.xlsx" -> STP201402 EGSR.xlsx | D18: 56 | E18: =IFERROR(IF($D18<>"",1,""),"") -> 1 | F18: 72 | G18: 0 | H18: 80 | I18: =IFERROR(IF($D18<>"",$D18+$F18+$G18-$H18,""),"") -> 48 | J18: 0 | K18: =IFERROR(IF($J18<>"",1,""),"") -> 1 | L18: 10 | M18: 7 | N18: 0 | O18: =IFERROR(IF($J18<>"",$J18+$L18-$M18-$N18,""),"") -> 3 | P18: =IFERROR(IF($D18<>"",$I18+$O18,""),"") -> 51 | Q18: =IFERROR($F18-$N18,"") -> 72
B19: MARCH | C19: STP201403 EGSR.xlsx | D19: 48 | E19: 1 | F19: 48 | G19: 0 | H19: 70 | I19: 26 | J19: 3 | K19: 1 | L19: 2 | M19: 2 | N19: 0 | O19: 3 | P19: 29 | Q19: 48
B20: APRIL | C20: STP201404 EGSR.xlsx | D20: 26 | E20: 1 | F20: 96 | G20: 0 | H20: 90 | I20: 32 | J20: 3 | K20: 1 | L20: 0 | M20: 3 | N20: 0 | O20: 0 | P20: 32 | Q20: 96
B21: MAY | C21: STP201405 EGSR.xlsx | Q21: 0
B22: JUNE | C22: STP201406 EGSR.xlsx | Q22: 0
B23: JULY | C23: STP201407 EGSR.xlsx | Q23: 0
B24: AUGUST | C24: STP201408 EGSR.xlsx | Q24: 0
B25: SEPTEMBER | C25: STP201409 EGSR.xlsx | Q25: 0
B26: OCTOBER | C26: STP201410 EGSR.xlsx | Q26: 0
B27: NOVEMBER | C27: STP201411 EGSR.xlsx | Q27: 0
B28: DECEMBER | C28: STP201412 EGSR.xlsx | Q28: 0
B29: TOTAL | D29: =IFERROR(INDEX($D$17:$D$28,MATCH(1,$E$17:$E$28,0),1),0) -> 33 | F29: =SUM(F$17:F$28) -> 288 | G29: =SUM(G$17:G$28) -> 0 | H29: 289 | I29: =$D$29+$F$29+$G$29-$H$29 -> 32 | J29: =IFERROR(INDEX($J$17:$J$28,MATCH(1,$K$17:$K$28,0),1),0) -> 0 | L29: =SUM(L$17:L$28) -> 13 | M29: =SUM(M$17:M$28) -> 13 | N29: 0 | O29: =$J$29+$L$29-$M$29-$N$29 -> 0 | P29: =$I29+$O29 -> 32 | R29: =SUM(R$17:R$28) -> 0 | S29: =SUM(S$17:S$28) -> 0
B30: * STOCK PURCHASED INCLUDES STOCK FORFEITED FROM CUSTODY
B31: Copyright © 2012 by Oracle Symphony Sdn Bhd

Sheet CIGARETTES
D3: ANNUAL STOCK SUMMARY OF ESSENTIAL GOODS BY TYPE
B6: OUTLET | D6: =Summary!C6 -> STP
B8: YEAR | D8: =Summary!C8 -> 2014
B10: TYPE OF BEER | D10: =MID(CELL("FILENAME",$A$1),FIND("]",CELL("FILENAME",$A$1))+1,256) -> CIGARETTES
B13: MONTH | C13: FILE NAME | D13: FOR REGULAR STOCK | J13: FOR CUSTODY STOCK | P13: CLOSING | Q13: PURCHASED | R13: LOSSES ( - ) / GAINS ( + )
D14: OPENING | E14: ROW | F14: IN ( + ) | H14: OUT ( - ) | I14: BALANCE | J14: OPENING | K14: ROW | L14: IN ( + ) | M14: OUT ( - ) | O14: BALANCE | Q14: excluding | R14: REGULAR | S14: CUSTODY
F15: PURCHASED * | G15: INCENTIVE | H15: SOLD | I15: STOCK | L15: DEPOSITED | M15: REDEEMED | N15: FORFEITED | O15: STOCK | Q15: forfeited | R15: STOCK | S15: STOCK
D16: ( bottles ) | F16: ( bottles ) | G16: ( bottles ) | H16: ( bottles ) | I16: ( bottles ) | J16: ( bottles ) | L16: ( bottles ) | M16: ( bottles ) | N16: ( bottles ) | O16: ( bottles ) | P16: ( bottles ) | Q16: ( bottles ) | R16: ( bottles ) | S16: ( bottles )
B17: JANUARY | C17: =$D$6&$D$8&TEXT(ROW($B17)-ROW($B$16),"00")&" EGSR.xlsx" -> STP201401 EGSR.xlsx | D17: 49 | E17: =IFERROR(IF($D17<>"",1,""),"") -> 1 | F17: 140 | G17: 0 | H17: 118 | I17: =IFERROR(IF($D17<>"",$D17+$F17+$G17-$H17,""),"") -> 71 | J17: 0 | K17: =IFERROR(IF($J17<>"",1,""),"") -> 1 | L17: 0 | M17: 0 | N17: 0 | O17: =IFERROR(IF($J17<>"",$J17+$L17-$M17-$N17,""),"") -> 0 | P17: =IFERROR(IF($D17<>"",$I17+$O17,""),"") -> 71 | Q17: =IFERROR($F17-$N17,"") -> 140
B18: FEBRUARY | C18: =$D$6&$D$8&TEXT(ROW($B18)-ROW($B$16),"00")&" EGSR.xlsx" -> STP201402 EGSR.xlsx | D18: 71 | E18: =IFERROR(IF($D18<>"",1,""),"") -> 1 | F18: 90 | G18: 0 | H18: 99 | I18: =IFERROR(IF($D18<>"",$D18+$F18+$G18-$H18,""),"") -> 62 | J18: 0 | K18: =IFERROR(IF($J18<>"",1,""),"") -> 1 | L18: 0 | M18: 0 | N18: 0 | O18: =IFERROR(IF($J18<>"",$J18+$L18-$M18-$N18,""),"") -> 0 | P18: =IFERROR(IF($D18<>"",$I18+$O18,""),"") -> 62 | Q18: =IFERROR($F18-$N18,"") -> 90
B19: MARCH | C19: STP201403 EGSR.xlsx | D19: 62 | E19: 1 | F19: 140 | G19: 0 | H19: 116 | I19: 86 | J19: 0 | K19: 1 | L19: 0 | M19: 0 | N19: 0 | O19: 0 | P19: 86 | Q19: 140
B20: APRIL | C20: STP201404 EGSR.xlsx | D20: 86 | E20: 1 | F20: 120 | G20: 0 | H20: 113 | I20: 93 | J20: 0 | K20: 1 | L20: 0 | M20: 0 | N20: 0 | O20: 0 | P20: 93 | Q20: 120
B21: MAY | C21: STP201405 EGSR.xlsx | Q21: 0
B22: JUNE | C22: STP201406 EGSR.xlsx | Q22: 0
B23: JULY | C23: STP201407 EGSR.xlsx | Q23: 0
B24: AUGUST | C24: STP201408 EGSR.xlsx | Q24: 0
B25: SEPTEMBER | C25: STP201409 EGSR.xlsx | Q25: 0
B26: OCTOBER | C26: STP201410 EGSR.xlsx | Q26: 0
B27: NOVEMBER | C27: STP201411 EGSR.xlsx | Q27: 0
B28: DECEMBER | C28: STP201412 EGSR.xlsx | Q28: 0
B29: TOTAL | D29: =IFERROR(INDEX($D$17:$D$28,MATCH(1,$E$17:$E$28,0),1),0) -> 49 | F29: =SUM(F$17:F$28) -> 490 | G29: =SUM(G$17:G$28) -> 0 | H29: 446 | I29: =$D$29+$F$29+$G$29-$H$29 -> 93 | J29: =IFERROR(INDEX($J$17:$J$28,MATCH(1,$K$17:$K$28,0),1),0) -> 0 | L29: =SUM(L$17:L$28) -> 0 | M29: =SUM(M$17:M$28) -> 0 | N29: 0 | O29: =$J$29+$L$29-$M$29-$N$29 -> 0 | P29: =$I29+$O29 -> 93 | R29: =SUM(R$17:R$28) -> 0 | S29: =SUM(S$17:S$28) -> 0
B30: * STOCK PURCHASED INCLUDES STOCK FORFEITED FROM CUSTODY
B31: Copyright © 2012 by Oracle Symphony Sdn Bhd
